bitfinex/quotes_SOLUSD_20241220
["timestamp","ask_amount","ask_price","bid_price","bid_amount"]
[1734668561700,24.97378974,196.17,196.11,24.97378974]
[1734668562644,24.97378974,196.18,196.11,24.97378974]
[1734668562942,12.741,196.22,196.05,0.76469131]
[1734668562943,24.97378974,196.22,196.15,24.97378974]
[1734668565342,24.97378974,196.22,196.14,0.76450834]
[1734668565565,24.97378974,196.24,196.17,24.97378974]
[1734668565732,24.97378974,196.25,196.18,24.97378974]
[1734668565934,24.97378974,196.26,196.19,24.97378974]
[1734668567462,24.97378974,196.2,196.14,24.97378974]
[1734668567668,24.97378974,196.19,196.13,31.23598974]
[1734668568663,24.97378974,196.16,196.09,24.97378974]
[1734668568862,24.97378974,196.17,196.1,24.97378974]
[1734668569042,24.97378974,196.17,196.11,24.97378974]
[1734668569354,24.97378974,196.18,196.12,24.97378974]
[1734668569559,24.97378974,196.19,196.12,24.97378974]
[1734668571675,24.97378974,196.19,196.13,24.97378974]
[1734668571836,24.97378974,196.23,196.17,24.97378974]
[1734668572231,24.97378974,196.24,196.17,24.97378974]
[1734668573382,24.97378974,196.24,196.18,24.97378974]
[1734668573568,24.97378974,196.25,196.18,24.97378974]
[1734668574377,24.97378974,196.24,196.18,24.97378974]
[1734668574562,24.97378974,196.22,196.15,24.97378974]
[1734668574760,24.97378974,196.22,196.16,24.97378974]
[1734668575070,24.97378974,196.23,196.16,24.97378974]
[1734668576384,24.97378974,196.22,196.16,24.97378974]
[1734668577651,24.97378974,196.23,196.16,24.97378974]
[1734668578185,24.97378974,196.24,196.18,24.97378974]
[1734668578487,24.97378974,196.25,196.18,24.97378974]
[1734668579401,24.97378974,196.24,196.18,24.97378974]
[1734668580510,23.776884,196.28,196.18,24.97378974]
[1734668580511,24.97378974,196.25,196.18,24.97378974]
[1734668580719,6.0708,196.32,196.24,24.97378974]
[1734668580891,20.7921,196.37,196.27,24.97378974]
[1734668581223,24.97378974,196.34,196.28,24.97378974]
[1734668581395,24.97378974,196.36,196.29,24.97378974]
[1734668581589,24.97378974,196.36,196.24,0.76402476]
[1734668581790,24.97378974,196.32,196.24,0.76402476]
[1734668582012,24.97378974,196.32,196.25,24.97378974]
[1734668582816,24.97378974,196.28,196.22,24.97378974]
[1734668583028,24.97378974,196.28,196.21,24.97378974]
[1734668583194,24.97378974,196.27,196.2,24.97378974]
[1734668583400,24.97378974,196.31,196.24,24.97378974]
[1734668583719,24.97378974,196.33,196.26,24.97378974]
[1734668584082,24.97378974,196.32,196.25,24.97378974]
[1734668584780,24.97378974,196.33,196.26,24.97378974]
[1734668585296,24.97378974,196.32,196.25,24.97378974]
[1734668586117,20.7918,196.37,196.2,25.73812005]
[1734668586118,24.97378974,196.33,196.26,24.97378974]
[1734668586904,24.97378974,196.32,196.25,24.97378974]
[1734668587501,24.97378974,196.3,196.23,44.97378974]
[1734668587692,24.97378974,196.3,196.23,24.97378974]
[1734668589016,24.97378974,196.29,196.22,24.97378974]
[1734668589719,24.97378974,196.3,196.23,24.97378974]
[1734668590098,24.97378974,196.26,196.2,24.97378974]
[1734668590299,24.97378974,196.25,196.18,24.97378974]
[1734668590740,24.97378974,196.23,196.16,27.13678974]
[1734668591025,24.97378974,196.23,196.12,6.3097]
[1734668591026,24.97378974,196.25,196.18,24.97378974]
[1734668591235,33.60148974,196.28,196.21,24.97378974]
[1734668591536,24.97378974,196.3,196.23,24.97378974]
[1734668592042,24.97378974,196.29,196.22,24.97378974]
[1734668592193,24.97378974,196.3,196.23,24.97378974]
[1734668594010,24.97378974,196.29,196.22,24.97378974]
[1734668594223,24.97378974,196.3,196.23,24.97378974]
[1734668594604,24.97378974,196.28,196.21,24.97378974]
[1734668595002,23.776884,196.32,196.2,24.97378974]
[1734668595003,24.97378974,196.27,196.2,24.97378974]
[1734668595610,24.97378974,196.25,196.18,24.97378974]
[1734668595941,24.97378974,196.24,196.17,24.97378974]
[1734668596335,24.97378974,196.25,196.18,24.97378974]
[1734668596644,24.97378974,196.21,196.14,24.97378974]
[1734668598449,6.4833,196.24,196.18,24.97378974]
[1734668599033,23.776884,196.24,196.18,24.97378974]
[1734668599547,24.97378974,196.25,196.18,24.97378974]
[1734668599759,24.97378974,196.24,196.17,24.97378974]
[1734668601648,24.97378974,196.25,196.18,24.97378974]
[1734668603551,24.97378974,196.24,196.18,24.97378974]
[1734668603753,24.97378974,196.24,196.17,24.97378974]
[1734668604768,48.75067374,196.25,196.18,24.97378974]
[1734668605051,15.59813711,196.24,196.18,15.59813711]
[1734668605750,39.37502111,196.25,196.18,15.59813711]
[1734668605920,39.37502111,196.25,196.19,15.59813711]
[1734668606263,39.37502111,196.25,196.18,15.59813711]
[1734668607048,39.37502111,196.25,196.19,15.59813711]
[1734668607454,15.59813711,196.25,196.19,15.59813711]
[1734668607652,21.70263711,196.29,196.22,15.59813711]
[1734668607814,15.59813711,196.3,196.23,15.59813711]
[1734668608019,15.59813711,196.3,196.24,15.59813711]
[1734668609141,23.776884,196.29,196.24,15.59813711]
[1734668610059,15.59813711,196.31,196.24,15.59813711]
[1734668610424,15.59813711,196.31,196.25,15.59813711]
[1734668610820,15.59813711,196.31,196.24,15.59813711]
[1734668611027,15.59813711,196.34,196.28,15.59813711]
[1734668611559,15.59813711,196.35,196.28,15.59813711]
[1734668612462,8.6255,196.38,196.2,31.12750559]
[1734668612463,15.59813711,196.3,196.24,15.59813711]
[1734668612762,15.59813711,196.31,196.25,15.59813711]
[1734668612962,15.59813711,196.35,196.28,15.59813711]
[1734668613126,13.09632924,196.43,196.29,0.7640073]
[1734668613330,6.646,196.43,196.35,15.59813711]
[1734668613526,15.59813711,196.44,196.37,15.59813711]
[1734668613721,19.37,196.48,196.31,0.76376557]
[1734668613722,15.59813711,196.45,196.39,15.59813711]
[1734668614122,15.59813711,196.44,196.37,15.59813711]
[1734668614423,15.59813711,196.45,196.38,15.59813711]
[1734668614942,24.91134929,196.43,196.36,24.91134929]
[1734668615140,48.68823329,196.42,196.35,24.91134929]
[1734668615450,24.91134929,196.41,196.34,24.91134929]
[1734668615655,24.91134929,196.41,196.33,0.76383718]
[1734668615656,24.91134929,196.42,196.35,24.91134929]
[1734668615839,24.91134929,196.42,196.36,24.91134929]
[1734668616235,24.91134929,196.44,196.37,24.91134929]
[1734668616439,0.6230473,196.47,196.41,24.91134929]
[1734668616664,0.6230473,196.47,196.43,24.91134929]
[1734668617227,0.6230473,196.47,196.45,24.91134929]
[1734668617428,0.6230473,196.47,196.46,24.91134929]
[1734668617961,0.6230473,196.47,196.43,24.91134929]
[1734668618745,0.6230473,196.47,196.45,24.91134929]
[1734668620149,0.6230473,196.47,196.46,24.91134929]
[1734668621349,4.73e-05,196.47,196.46,33.90789888]
[1734668621552,24.91134929,196.61,196.5,20.0]
[1734668621866,24.91134929,196.61,196.54,24.91134929]
[1734668622373,24.85002873,196.61,196.54,24.91134929]
[1734668622879,24.91134929,196.66,196.59,24.91134929]
[1734668623052,24.91134929,196.65,196.58,24.91134929]
[1734668623972,24.91134929,196.62,196.56,24.91134929]
[1734668624280,24.91134929,196.61,196.54,24.91134929]
[1734668624458,24.91134929,196.58,196.52,24.91134929]
[1734668624663,24.91134929,196.59,196.52,24.91134929]
[1734668624970,24.91134929,196.6,196.53,24.91134929]
[1734668625177,24.91134929,196.62,196.55,24.91134929]
[1734668625479,24.91134929,196.62,196.5,25.67444064]
[1734668625480,24.91134929,196.63,196.56,24.91134929]
[1734668625991,24.91134929,196.64,196.57,24.91134929]
[1734668626193,48.68823329,196.65,196.58,24.91134929]
[1734668626489,24.91134929,196.66,196.59,24.91134929]
[1734668626666,25.53439659,196.67,196.6,24.91134929]
[1734668627374,24.91134929,196.64,196.57,24.91134929]
[1734668627697,24.91134929,196.66,196.59,24.91134929]
[1734668627895,25.53439659,196.67,196.6,24.91134929]
[1734668628192,25.53439659,196.67,196.61,0.76276264]
[1734668628193,0.6230473,196.67,196.61,0.76276264]
[1734668628506,0.6230473,196.67,196.66,24.91134929]
[1734668628789,0.6230473,196.67,196.65,24.91134929]
[1734668628993,0.6230473,196.67,196.62,24.91134929]
[1734668629770,0.6230473,196.67,196.64,24.91134929]
[1734668629969,25.53439659,196.67,196.59,20.0]
[1734668630279,24.91134929,196.65,196.59,24.91134929]
[1734668630490,24.91134929,196.64,196.57,24.91134929]
[1734668630664,24.91134929,196.66,196.6,24.91134929]
[1734668631180,24.91134929,196.66,196.59,24.91134929]
[1734668631679,24.91134929,196.66,196.6,24.91134929]
[1734668631890,24.91134929,196.64,196.58,24.91134929]
[1734668632199,24.91134929,196.63,196.56,24.91134929]
[1734668632699,24.91134929,196.61,196.54,24.91134929]
[1734668633007,24.91134929,196.6,196.54,24.91134929]
[1734668633218,24.91134929,196.6,196.53,24.91134929]
[1734668634219,24.91134929,196.58,196.51,24.91134929]
[1734668634517,24.91134929,196.57,196.51,24.91134929]
[1734668635204,24.91134929,196.57,196.5,24.91134929]
[1734668635711,24.91134929,196.57,196.51,24.91134929]
[1734668635914,24.91134929,196.58,196.51,24.91134929]
[1734668637715,24.91134929,196.57,196.5,24.91134929]
[1734668638210,24.91134929,196.6,196.54,24.91134929]
[1734668639013,24.91134929,196.61,196.5,0.76316694]
[1734668639214,24.91134929,196.61,196.54,24.91134929]
[1734668639398,24.91134929,196.6,196.53,24.91134929]
[1734668639589,24.91134929,196.61,196.54,24.91134929]
[1734668639791,24.91134929,196.63,196.56,24.91134929]
[1734668640416,24.91134929,196.62,196.55,24.91134929]
[1734668640630,24.91134929,196.59,196.52,24.91134929]
[1734668640829,24.91134929,196.6,196.53,24.91134929]
[1734668641034,24.91134929,196.61,196.54,24.91134929]
[1734668641401,0.6230473,196.67,196.6,24.91134929]
[1734668641603,0.6230473,196.67,196.62,24.91134929]
[1734668641802,0.6230473,196.67,196.61,24.91134929]
[1734668642130,25.53439659,196.67,196.6,24.91134929]
[1734668642633,25.53439659,196.67,196.59,24.91134929]
[1734668642946,24.91134929,196.63,196.56,24.91134929]
[1734668643103,24.91134929,196.61,196.54,24.91134929]
[1734668643298,24.91134929,196.6,196.53,24.91134929]
[1734668643637,24.91134929,196.61,196.54,24.91134929]
[1734668643937,24.91134929,196.6,196.54,24.91134929]
[1734668644504,24.91134929,196.6,196.53,24.91134929]
[1734668644707,24.91134929,196.58,196.51,24.91134929]
[1734668644926,24.91134929,196.56,196.49,27.04334929]
[1734668645941,24.91134929,196.54,196.47,24.91134929]
[1734668646107,24.91134929,196.52,196.46,24.91134929]
[1734668646301,24.91134929,196.52,196.44,2.0913]
[1734668646302,24.91134929,196.52,196.45,24.91134929]
[1734668646505,24.91134929,196.51,196.44,27.00264929]
[1734668646712,24.91134929,196.49,196.43,24.91134929]
[1734668647109,24.91134929,196.48,196.41,24.91134929]
[1734668647410,24.91134929,196.46,196.39,27.00264929]
[1734668647614,24.91134929,196.45,196.38,24.91134929]
[1734668649110,24.91134929,196.46,196.39,24.91134929]
[1734668651632,2.1906,196.51,196.39,24.91134929]
[1734668651633,24.91134929,196.47,196.39,24.91134929]
[1734668651890,24.91134929,196.49,196.42,24.91134929]
[1734668652039,24.91134929,196.49,196.4,0.76352587]
[1734668652040,24.91134929,196.5,196.43,24.91134929]
[1734668652439,24.91134929,196.51,196.44,24.91134929]
[1734668654149,24.91134929,196.54,196.47,24.91134929]
[1734668654333,24.91134929,196.55,196.48,24.91134929]
[1734668655409,24.91134929,196.56,196.49,24.91134929]
[1734668655820,24.91134929,196.58,196.51,24.91134929]
[1734668657144,24.91134929,196.59,196.52,24.91134929]
[1734668657740,6.0579,196.72,196.58,24.91134929]
[1734668658046,25.53439659,196.67,196.6,24.91134929]
[1734668658222,0.6230473,196.67,196.6,24.91134929]
[1734668658416,0.6230473,196.67,196.61,24.91134929]
[1734668658843,0.6230473,196.67,196.63,24.91134929]
[1734668659048,0.6230473,196.67,196.62,24.91134929]
[1734668659542,24.91134929,196.66,196.58,31.26694929]
[1734668659922,24.91134929,196.66,196.59,24.91134929]
[1734668661144,24.91134929,196.65,196.58,24.91134929]
[1734668661327,24.91134929,196.62,196.55,27.00514929]
[1734668661944,24.91134929,196.63,196.56,24.91134929]
[1734668662125,24.91134929,196.64,196.57,24.91134929]
[1734668663125,24.91134929,196.66,196.59,24.91134929]
[1734668663744,0.6230473,196.67,196.57,24.91134929]
[1734668663745,24.91134929,196.64,196.57,24.91134929]
[1734668663931,24.91134929,196.62,196.55,27.00514929]
[1734668664125,24.91134929,196.62,196.55,24.91134929]
[1734668664447,24.91134929,196.59,196.52,24.91134929]
[1734668664619,24.91134929,196.58,196.51,24.91134929]
[1734668664819,13.3348473,196.67,196.53,24.91134929]
[1734668665019,24.91134929,196.63,196.56,24.91134929]
[1734668666261,24.91134929,196.64,196.57,24.91134929]
[1734668666431,25.53439659,196.67,196.6,24.91134929]
[1734668667147,0.6230473,196.67,196.62,24.91134929]
[1734668667352,0.6230473,196.67,196.63,24.91134929]
[1734668667651,0.6230473,196.67,196.62,24.91134929]
[1734668668329,0.6230473,196.67,196.66,24.91134929]
[1734668670340,0.6230473,196.67,196.66,48.68823329]
[1734668670543,24.91134929,196.81,196.74,24.91134929]
[1734668670946,12.7001,196.85,196.74,24.91134929]
[1734668670947,24.91134929,196.82,196.74,24.91134929]
[1734668671141,24.91134929,196.81,196.74,24.91134929]
[1734668671340,24.91134929,196.8,196.72,24.91134929]
[1734668671645,6.3849,196.88,196.74,20.0]
[1734668671855,6.3849,196.88,196.75,0.76211588]
[1734668672045,24.91134929,196.86,196.79,24.91134929]
[1734668672563,24.91134929,196.86,196.78,24.91134929]
[1734668672769,24.91134929,196.9,196.82,24.91134929]
[1734668672954,24.91134929,196.94,196.86,44.91134929]
[1734668673260,37.60194929,197.0,196.85,24.91134929]
[1734668673832,14.38968882,197.01,196.86,25.67318483]
[1734668674152,24.91134929,196.97,196.86,25.67318483]
[1734668674326,24.91134929,196.96,196.86,25.67318483]
[1734668674526,24.91134929,196.92,196.85,24.91134929]
[1734668674858,24.91134929,196.91,196.84,24.91134929]
[1734668675037,24.91134929,196.92,196.85,24.91134929]
[1734668675236,24.91134929,196.93,196.86,24.91134929]
[1734668676340,24.91134929,196.92,196.85,24.91134929]
[1734668676659,24.91134929,196.93,196.86,24.91134929]
[1734668676862,24.91134929,196.94,196.86,24.91134929]
[1734668677553,24.91134929,196.96,196.86,24.91134929]
[1734668678058,24.91134929,196.98,196.86,24.91134929]
[1734668678270,24.91134929,196.99,196.86,24.91134929]
[1734668678634,24.91134929,196.97,196.86,24.91134929]
[1734668678835,24.91134929,196.95,196.86,24.91134929]
[1734668679061,24.91134929,196.96,196.86,24.91134929]
[1734668679271,24.91134929,196.98,196.86,24.91134929]
[1734668679960,24.91134929,196.99,196.86,48.68823329]
[1734668680773,24.91134929,196.96,196.86,24.91134929]
[1734668680974,6.6409,197.09,196.88,6.2769]
[1734668681160,24.91134929,197.05,196.98,24.91134929]
[1734668681363,24.91134929,197.01,196.94,24.91134929]
[1734668681569,6.6409,197.09,196.89,0.76154583]
[1734668681900,24.91134929,196.99,196.89,0.76154583]
[1734668682074,24.91134929,196.98,196.91,44.91134929]
[1734668682242,24.91134929,197.0,196.93,24.91134929]
[1734668682649,24.91134929,196.99,196.92,24.91134929]
[1734668683457,24.91134929,196.98,196.91,24.91134929]
[1734668683769,24.91134929,196.97,196.9,24.91134929]
[1734668683943,24.91134929,196.93,196.86,24.91134929]
[1734668684144,24.91134929,196.9,196.84,24.91134929]
[1734668684338,24.91134929,196.9,196.81,0.76182416]
[1734668684339,24.91134929,196.9,196.83,24.91134929]
[1734668684672,24.91134929,196.92,196.85,24.91134929]
[1734668684850,24.91134929,196.94,196.87,24.91134929]
[1734668685050,24.91134929,196.93,196.86,24.91134929]
[1734668685471,24.91134929,196.92,196.85,24.91134929]
[1734668685774,24.91134929,196.91,196.85,24.91134929]
[1734668686074,24.91134929,196.9,196.84,24.91134929]
[1734668686674,24.91134929,196.91,196.84,24.91134929]
[1734668687450,24.91134929,196.9,196.83,24.91134929]
[1734668687751,6.0761,196.96,196.83,24.91134929]
[1734668688079,2.0088,196.99,196.92,24.91134929]
[1734668688258,26.92014929,196.99,196.92,24.91134929]
[1734668688459,24.91134929,196.98,196.91,24.91134929]
[1734668688839,24.91134929,196.96,196.89,24.91134929]
[1734668689075,24.91134929,196.95,196.88,24.91134929]
[1734668689273,24.91134929,196.94,196.87,24.91134929]
[1734668689446,24.91134929,196.93,196.86,24.91134929]
[1734668689655,24.91134929,196.92,196.85,24.91134929]
[1734668689868,24.91134929,196.91,196.84,24.91134929]
[1734668690372,24.91134929,196.92,196.85,24.91134929]
[1734668690569,24.91134929,196.95,196.88,24.91134929]
[1734668690757,44.91134929,196.97,196.91,24.91134929]
[1734668691080,24.91134929,196.96,196.89,24.91134929]
[1734668691481,24.91134929,196.96,196.83,0.76171129]
[1734668691482,24.91134929,196.93,196.87,24.91134929]
[1734668691859,24.91134929,196.95,196.9,20.0]
[1734668692176,24.91134929,196.98,196.91,24.91134929]
[1734668693181,24.91134929,196.96,196.89,24.91134929]
[1734668694190,24.91134929,196.98,196.91,24.91134929]
[1734668694395,24.91134929,196.97,196.89,24.91134929]
[1734668694682,24.91134929,196.97,196.9,24.91134929]
[1734668695080,24.91134929,196.95,196.88,24.91134929]
[1734668695287,24.91134929,196.93,196.85,24.91134929]
[1734668695691,24.91134929,196.93,196.86,24.91134929]
[1734668695864,24.91134929,196.95,196.88,24.91134929]
[1734668696165,24.91134929,196.94,196.87,24.91134929]
[1734668696689,24.91134929,196.92,196.85,24.91134929]
[1734668697655,24.91134929,196.93,196.86,24.91134929]
[1734668698064,24.91134929,196.95,196.87,24.91134929]
[1734668698261,24.91134929,196.93,196.86,24.91134929]
[1734668699501,24.91134929,196.94,196.87,24.91134929]
[1734668699994,24.91134929,196.94,196.86,24.91134929]
[1734668700401,24.91134929,196.95,196.88,24.91134929]
[1734668701274,24.91134929,196.94,196.87,24.91134929]
[1734668701917,24.91134929,196.92,196.85,24.91134929]
[1734668702081,24.91134929,196.92,196.84,24.91134929]
[1734668702796,12.6909,196.99,196.79,2.1137]
[1734668702797,24.91134929,196.9,196.83,24.91134929]
[1734668703999,24.91134929,196.9,196.76,18.958]
[1734668704000,24.91134929,196.86,196.77,0.76197405]
[1734668704303,24.91134929,196.82,196.75,24.91134929]
[1734668704600,6.093,196.92,196.75,0.76225759]
[1734668704601,23.776884,196.91,196.75,0.76225759]
[1734668704778,6.093,196.92,196.76,0.12549]
[1734668704982,6.093,196.92,196.77,0.76189578]
[1734668705194,2.1852,196.94,196.78,0.12549]
[1734668705505,6.2826,196.96,196.8,20.0]
[1734668705795,6.2826,196.96,196.81,0.7617688]
[1734668705993,24.91134929,196.92,196.85,24.91134929]
[1734668706377,24.91134929,196.93,196.86,24.91134929]
[1734668706788,24.91134929,196.92,196.86,24.91134929]
[1734668706991,24.91134929,196.9,196.83,24.91134929]
[1734668707588,24.91134929,196.89,196.83,24.91134929]
[1734668707765,24.91134929,196.86,196.79,24.91134929]
[1734668708209,20.0,196.92,196.83,24.91134929]
[1734668708413,24.91134929,196.9,196.83,24.91134929]
[1734668708622,24.91134929,196.89,196.82,24.91134929]
[1734668708918,24.91134929,196.89,196.83,24.91134929]
[1734668709229,24.91134929,196.89,196.82,24.91134929]
[1734668709787,24.91134929,196.88,196.81,24.91134929]
[1734668710018,24.91134929,196.93,196.86,24.91134929]
[1734668710387,24.91134929,196.96,196.89,24.91134929]
[1734668710594,24.91134929,196.97,196.9,24.91134929]
[1734668711011,24.91134929,196.97,196.87,0.76176483]
[1734668711012,24.91134929,196.98,196.91,24.91134929]
[1734668711206,24.91134929,196.97,196.9,24.91134929]
[1734668711953,24.91134929,196.96,196.89,24.91134929]
[1734668712945,24.91134929,196.96,196.88,24.91134929]
[1734668713235,12.6908,197.0,196.86,24.91134929]
[1734668713236,24.91134929,196.93,196.86,24.91134929]
[1734668713695,24.91134929,196.94,196.87,24.91134929]
[1734668713891,12.6916,196.98,196.86,24.91134929]
[1734668713892,24.91134929,196.93,196.86,24.91134929]
[1734668714098,24.91134929,196.96,196.89,24.91134929]
[1734668714434,24.91134929,196.97,196.9,24.91134929]
[1734668715128,24.91134929,197.0,196.93,24.91134929]
[1734668715718,2.0065,197.04,196.94,24.91134929]
[1734668715917,24.91134929,197.02,196.95,24.91134929]
[1734668716109,24.91134929,197.03,196.96,24.91134929]
[1734668716304,24.91134929,197.05,196.97,24.91134929]
[1734668716810,24.91134929,197.02,196.95,24.91134929]
[1734668717010,24.91134929,197.01,196.94,44.91134929]
[1734668717634,24.91134929,196.97,196.91,6.1501]
[1734668717837,24.91134929,196.96,196.9,26.94104929]
[1734668718045,24.91134929,196.96,196.9,2.0297]
[1734668718707,24.91134929,196.96,196.9,26.94104929]
[1734668719633,24.91134929,196.97,196.9,26.94104929]
[1734668719947,24.91134929,196.94,196.88,24.91134929]
[1734668720235,24.91134929,196.92,196.85,24.91134929]
[1734668720641,24.91134929,196.93,196.86,24.91134929]
[1734668720812,23.776884,196.97,196.86,24.91134929]
[1734668721132,24.91134929,196.93,196.86,24.91134929]
[1734668721333,24.91134929,196.92,196.85,24.91134929]
[1734668721516,2.1925,196.98,196.84,26.98424929]
[1734668721517,24.91134929,196.91,196.84,26.98424929]
[1734668721722,24.91134929,196.89,196.82,24.91134929]
[1734668722748,24.91134929,196.88,196.81,24.91134929]
[1734668723112,24.91134929,196.88,196.82,24.91134929]
[1734668723312,20.0,196.93,196.82,24.91134929]
[1734668723631,24.91134929,196.9,196.83,24.91134929]
[1734668724325,24.91134929,196.93,196.86,24.91134929]
[1734668724836,23.776884,196.95,196.85,24.91134929]
[1734668724837,24.91134929,196.92,196.85,24.91134929]
[1734668726644,24.91134929,196.92,196.86,24.91134929]
[1734668727213,24.91134929,196.9,196.83,24.91134929]
[1734668727442,24.91134929,196.89,196.82,24.91134929]
[1734668727640,24.91134929,196.9,196.84,24.91134929]
[1734668727824,24.91134929,196.91,196.84,24.91134929]
[1734668728023,24.91134929,196.9,196.84,24.91134929]
[1734668728236,24.91134929,196.91,196.84,24.91134929]
[1734668728448,24.91134929,196.92,196.85,24.91134929]
[1734668728947,48.68823329,196.93,196.86,24.91134929]
[1734668729170,23.776884,196.94,196.88,24.91134929]
[1734668729316,24.91134929,196.93,196.87,24.91134929]
[1734668730545,24.91134929,196.93,196.86,24.91134929]
[1734668730759,48.68823329,196.94,196.87,24.91134929]
[1734668731063,24.91134929,196.93,196.86,24.91134929]
[1734668731231,48.68823329,196.92,196.85,24.91134929]
[1734668731432,24.91134929,196.9,196.84,24.91134929]
[1734668731667,24.91134929,196.9,196.78,0.76188373]
[1734668731668,24.91134929,196.9,196.83,24.91134929]
[1734668731835,24.91134929,196.89,196.83,24.91134929]
[1734668733667,24.91134929,196.87,196.79,20.0]
[1734668733832,24.91134929,196.86,196.79,24.91134929]
[1734668734031,24.91134929,196.85,196.78,24.91134929]
[1734668734450,24.91134929,196.86,196.79,24.91134929]
[1734668734646,24.91134929,196.86,196.8,24.91134929]
[1734668735368,24.91134929,196.88,196.81,24.91134929]
[1734668735564,24.91134929,196.89,196.82,24.91134929]
[1734668735864,23.776884,196.88,196.82,24.91134929]
[1734668736456,48.68823329,196.88,196.81,24.91134929]
[1734668736941,24.91134929,196.87,196.8,24.91134929]
[1734668737269,23.776884,196.88,196.81,24.91134929]
[1734668737270,48.68823329,196.88,196.81,24.91134929]
[1734668737865,24.91134929,196.87,196.8,24.91134929]
[1734668738047,23.776884,196.88,196.76,7.34162867]
[1734668738048,48.68823329,196.88,196.81,24.91134929]
[1734668738471,23.776884,196.88,196.81,24.91134929]
[1734668739043,23.776884,196.88,196.82,24.91134929]
[1734668739245,24.91134929,196.9,196.83,24.91134929]
[1734668739644,48.68823329,196.89,196.82,24.91134929]
[1734668739944,48.68823329,196.89,196.81,24.91134929]
[1734668740144,24.91134929,196.88,196.81,24.91134929]
[1734668740373,23.776884,196.87,196.81,24.91134929]
[1734668741555,48.68823329,196.87,196.8,24.91134929]
[1734668742052,24.91134929,196.87,196.8,24.91134929]
[1734668742252,24.91134929,196.9,196.83,24.91134929]
[1734668742575,48.68823329,196.88,196.81,24.91134929]
[1734668742757,24.91134929,196.88,196.81,24.91134929]
[1734668742956,23.776884,196.87,196.81,24.91134929]
[1734668743870,48.68823329,196.87,196.8,24.91134929]
[1734668744047,24.91134929,196.89,196.82,24.91134929]
[1734668744375,23.776884,196.88,196.82,24.91134929]
[1734668744849,24.91134929,196.94,196.87,24.91134929]
[1734668745048,6.3992,196.97,196.89,24.91134929]
[1734668745049,24.91134929,196.96,196.89,24.91134929]
[1734668745548,2.1925,196.98,196.9,24.91134929]
[1734668745746,24.91134929,196.97,196.9,24.91134929]
[1734668746162,24.91134929,196.96,196.89,24.91134929]
[1734668746680,24.91134929,196.97,196.9,24.91134929]
[1734668747049,15.48434546,196.97,196.9,15.48434546]
[1734668747480,15.48434546,196.98,196.91,15.48434546]
[1734668747962,23.776884,196.97,196.91,15.48434546]
[1734668748582,15.48434546,197.0,196.93,15.48434546]
[1734668749074,24.76794629,197.0,196.93,24.76794629]
[1734668749378,20.0,197.04,196.96,24.76794629]
[1734668749582,24.76794629,197.03,196.96,24.76794629]
[1734668749754,24.76794629,197.02,196.95,24.76794629]
[1734668749958,24.76794629,197.03,196.96,24.76794629]
[1734668750860,23.776884,197.03,196.97,24.76794629]
[1734668752066,25.39099359,197.07,197.0,24.76794629]
[1734668752367,0.6230473,197.07,197.01,24.76794629]
[1734668753077,0.6230473,197.07,196.95,8.79832965]
[1734668753078,0.6230473,197.07,197.02,24.76794629]
[1734668753284,0.6230473,197.07,197.03,24.76794629]
[1734668754161,0.6230473,197.07,196.99,0.76122151]
[1734668754162,0.6230473,197.07,197.04,24.76794629]
[1734668754358,0.6230473,197.07,196.99,0.76122151]
[1734668754567,23.776884,197.06,196.98,24.76794629]
[1734668754785,24.76794629,197.05,196.98,24.76794629]
[1734668755172,24.76794629,197.05,196.95,8.037]
[1734668755173,48.54483029,197.06,196.99,24.76794629]
[1734668756071,24.76794629,197.05,196.99,24.76794629]
[1734668756384,48.54483029,197.06,196.99,24.76794629]
[1734668756768,23.776884,197.06,197.0,24.76794629]
[1734668756973,24.76794629,197.05,196.99,24.76794629]
[1734668757176,48.54483029,197.04,196.98,24.76794629]
[1734668757387,23.776884,197.01,196.96,24.76794629]
[1734668757584,23.776884,197.01,196.95,24.76794629]
[1734668758092,23.776884,197.02,196.96,24.76794629]
[1734668759998,31.04794629,197.06,197.0,24.76794629]
[1734668760664,31.04794629,197.06,196.99,24.76794629]
[1734668761386,31.04794629,197.06,196.98,24.76794629]
[1734668761387,24.76794629,197.04,196.98,24.76794629]
[1734668761870,48.54483029,197.05,196.98,24.76794629]
[1734668762070,24.76794629,197.04,196.98,24.76794629]
[1734668762690,48.54483029,197.05,196.98,24.76794629]
[1734668763200,24.76794629,197.04,196.98,24.76794629]
[1734668763578,23.776884,197.03,196.98,24.76794629]
[1734668763892,23.71574721,197.03,196.98,24.76794629]
[1734668764094,6.28,197.06,196.98,24.76794629]
[1734668764268,25.39099359,197.07,197.0,24.76794629]
[1734668764473,24.76794629,197.06,197.0,24.76794629]
[1734668764668,24.76794629,197.06,196.91,0.76142569]
[1734668764669,24.76794629,197.06,196.99,24.76794629]
[1734668765694,23.776884,197.05,196.99,24.76794629]
[1734668765880,23.776884,197.05,197.0,24.76794629]
[1734668766082,23.776884,197.06,197.0,24.76794629]
[1734668766375,48.54483029,197.06,196.99,24.76794629]
[1734668766799,24.76794629,197.05,196.98,24.76794629]
[1734668767099,23.776884,197.04,196.98,24.76794629]